[Event "Late-Titled-Tuesday-Blitz-May-07-2024"]
[Site "Chess.com"]
[Date "2024.05.07"]
[Round "3"]
[White "Defend1r"]
[Black "eljanov"]
[Result "0-1"]
[WhiteElo "2620"]
[BlackElo "2874"]
[TimeControl "180+1"]
[EndTime "14:27:12 PDT"]
[Termination "eljanov won by resignation"]

1. e4 {[%clk 0:03:00.9]} 1... c6 {[%clk 0:02:58.6]} 2. d4 {[%clk 0:02:59.8]}
2... d5 {[%clk 0:02:59.5]} 3. e5 {[%clk 0:03:00.3]} 3... Bf5 {[%clk 0:02:59.4]}
4. h4 {[%clk 0:03:00.6]} 4... h5 {[%clk 0:02:59.5]} 5. Bd3 {[%clk 0:03:00.5]}
5... Bxd3 {[%clk 0:02:59.7]} 6. Qxd3 {[%clk 0:03:01.4]} 6... Qa5+ {[%clk
0:03:00]} 7. Nc3 {[%clk 0:03:01.5]} 7... e6 {[%clk 0:02:59.7]} 8. Bg5 {[%clk
0:02:58.7]} 8... c5 {[%clk 0:02:55.4]} 9. Qb5+ {[%clk 0:02:17.2]} 9... Qxb5
{[%clk 0:02:55.2]} 10. Nxb5 {[%clk 0:02:17.1]} 10... Kd7 {[%clk 0:02:55.9]} 11.
dxc5 {[%clk 0:02:17.2]} 11... Bxc5 {[%clk 0:02:54.4]} 12. Nf3 {[%clk 0:02:17.1]}
12... Nc6 {[%clk 0:02:49.4]} 13. c3 {[%clk 0:02:16.6]} 13... Nh6 {[%clk
0:02:45.4]} 14. Nbd4 {[%clk 0:01:49.4]} 14... Rac8 {[%clk 0:02:40.2]} 15. Bf4
{[%clk 0:01:24.2]} 15... Nxd4 {[%clk 0:02:25.6]} 16. cxd4 {[%clk 0:01:17.1]}
16... Bb4+ {[%clk 0:02:25.6]} 17. Kd1 {[%clk 0:01:17.1]} 17... Ng4 {[%clk
0:02:13.4]} 18. Be3 {[%clk 0:01:07]} 18... f6 {[%clk 0:02:13.3]} 19. exf6 {[%clk
0:01:05.8]} 19... gxf6 {[%clk 0:02:13]} 20. Rc1 {[%clk 0:01:03.9]} 20... e5
{[%clk 0:02:09]} 21. Ke2 {[%clk 0:00:48.7]} 21... e4 {[%clk 0:02:09]} 22. Nd2
{[%clk 0:00:48.2]} 22... Nxe3 {[%clk 0:02:01.5]} 23. Kxe3 {[%clk 0:00:44.7]}
23... Rhg8 {[%clk 0:01:49.9]} 24. g3 {[%clk 0:00:44.3]} 24... Bf8 {[%clk
0:01:48.2]} 25. Ke2 {[%clk 0:00:33.1]} 25... Bh6 {[%clk 0:01:48.3]} 26. Rc3
{[%clk 0:00:25.7]} 26... Rxc3 {[%clk 0:01:46]} 27. bxc3 {[%clk 0:00:25.5]} 27...
Rc8 {[%clk 0:01:46.5]} 28. Rc1 {[%clk 0:00:25.4]} 28... f5 {[%clk 0:01:46.8]}
29. Rc2 {[%clk 0:00:22.2]} 29... b5 {[%clk 0:01:44.7]} 30. Kd1 {[%clk
0:00:19.8]} 30... f4 {[%clk 0:01:42.8]} 31. gxf4 {[%clk 0:00:19.7]} 31... Bxf4
{[%clk 0:01:43]} 32. Nf1 {[%clk 0:00:19.7]} 32... Rg8 {[%clk 0:01:41.9]} 33. Rb2
{[%clk 0:00:19.4]} 33... Kc6 {[%clk 0:01:40.6]} 34. a4 {[%clk 0:00:19.1]} 34...
bxa4 {[%clk 0:01:38.7]} 35. Rb4 {[%clk 0:00:18.5]} 35... a5 {[%clk 0:01:36.2]}
36. Rxa4 {[%clk 0:00:17.9]} 36... Kb5 {[%clk 0:01:35.8]} 37. Ra2 {[%clk
0:00:18.1]} 37... Rg4 {[%clk 0:01:31.1]} 38. Ne3 {[%clk 0:00:01.2]} 38... Bxe3
{[%clk 0:01:29.1]} 0-1

[Event "Late-Titled-Tuesday-Blitz-May-07-2024"]
[Site "Chess.com"]
[Date "2024.05.07"]
[Round "3"]
[White "betta2004"]
[Black "NCchamp"]
[Result "0-1"]
[WhiteElo "2490"]
[BlackElo "2260"]
[TimeControl "180+1"]
[EndTime "14:27:23 PDT"]
[Termination "NCchamp won by resignation"]

1. d4 {[%clk 0:03:00.9]} 1... d5 {[%clk 0:02:58.9]} 2. c4 {[%clk 0:02:59.8]}
2... dxc4 {[%clk 0:02:59.8]} 3. e4 {[%clk 0:02:58.5]} 3... b5 {[%clk 0:03:00.1]}
4. a4 {[%clk 0:02:43.6]} 4... c6 {[%clk 0:02:59.3]} 5. axb5 {[%clk 0:02:39.5]}
5... cxb5 {[%clk 0:03:00.2]} 6. Nc3 {[%clk 0:02:40.3]} 6... a6 {[%clk
0:03:00.7]} 7. Nxb5 {[%clk 0:02:34.6]} 7... axb5 {[%clk 0:03:01.6]} 8. Rxa8
{[%clk 0:02:33.7]} 8... Bb7 {[%clk 0:03:02.1]} 9. Ra1 {[%clk 0:02:29.1]} 9... e6
{[%clk 0:03:02.4]} 10. f3 {[%clk 0:02:23.6]} 10... f5 {[%clk 0:03:01.5]} 11.
exf5 {[%clk 0:02:22.7]} 11... Nc6 {[%clk 0:02:41]} 12. Ne2 {[%clk 0:02:22.5]}
12... Bb4+ {[%clk 0:02:39.8]} 13. Bd2 {[%clk 0:02:07.5]} 13... Nge7 {[%clk
0:02:34.8]} 14. fxe6 {[%clk 0:02:04.3]} 14... Nf5 {[%clk 0:02:32.3]} 15. d5
{[%clk 0:01:51.9]} 15... Ne3 {[%clk 0:01:41.5]} 16. dxc6 {[%clk 0:01:44.6]}
16... Nxd1 {[%clk 0:01:34]} 17. Bxb4 {[%clk 0:01:43.7]} 17... Nxb2 {[%clk
0:01:22.6]} 18. Nd4 {[%clk 0:00:32.5]} 18... Qxd4 {[%clk 0:00:21.5]} 19. cxb7
{[%clk 0:00:32.4]} 19... Qe5+ {[%clk 0:00:10.8]} 20. Be2 {[%clk 0:00:28.7]}
20... Nd3+ {[%clk 0:00:09.9]} 21. Kf1 {[%clk 0:00:29]} 21... Qxa1+ {[%clk
0:00:09.1]} 0-1

[Event "Late-Titled-Tuesday-Blitz-May-07-2024"]
[Site "Chess.com"]
[Date "2024.05.07"]
[Round "3"]
[White "Walter_White_Poland"]
[Black "Alina_Gumerovna"]
[Result "1-0"]
[WhiteElo "2428"]
[BlackElo "2174"]
[TimeControl "180+1"]
[EndTime "14:27:26 PDT"]
[Termination "Walter_White_Poland won on time"]

1. e4 {[%clk 0:03:00.9]} 1... e5 {[%clk 0:02:57.3]} 2. Nf3 {[%clk 0:02:59.7]}
2... Nf6 {[%clk 0:02:55.6]} 3. d4 {[%clk 0:02:58.9]} 3... Nxe4 {[%clk
0:02:55.5]} 4. Bd3 {[%clk 0:02:58.4]} 4... d5 {[%clk 0:02:55.4]} 5. Nxe5 {[%clk
0:02:57.2]} 5... Nd7 {[%clk 0:02:55.6]} 6. Nxd7 {[%clk 0:02:57.1]} 6... Bxd7
{[%clk 0:02:56.5]} 7. O-O {[%clk 0:02:56.6]} 7... Bd6 {[%clk 0:02:49.7]} 8. Re1
{[%clk 0:02:53.4]} 8... O-O {[%clk 0:02:39]} 9. Bxe4 {[%clk 0:02:48.1]} 9...
dxe4 {[%clk 0:02:39.1]} 10. Rxe4 {[%clk 0:02:47.1]} 10... Bc6 {[%clk 0:02:34.4]}
11. Re1 {[%clk 0:02:39.2]} 11... Qh4 {[%clk 0:02:30.7]} 12. h3 {[%clk
0:02:37.6]} 12... Rad8 {[%clk 0:01:52.9]} 13. Nc3 {[%clk 0:02:35.8]} 13... Bc5
{[%clk 0:01:26.5]} 14. Be3 {[%clk 0:01:59.6]} 14... Bxd4 {[%clk 0:01:18.2]} 15.
Qg4 {[%clk 0:01:29.5]} 15... Qxg4 {[%clk 0:01:04.5]} 16. hxg4 {[%clk 0:01:30.4]}
16... Bxc3 {[%clk 0:00:44.3]} 17. bxc3 {[%clk 0:01:31.3]} 17... b6 {[%clk
0:00:43.5]} 18. f3 {[%clk 0:01:31]} 18... f6 {[%clk 0:00:38.3]} 19. Kf2 {[%clk
0:01:30.4]} 19... Kf7 {[%clk 0:00:38.4]} 20. Red1 {[%clk 0:01:30.3]} 20... h6
{[%clk 0:00:37.8]} 21. Bf4 {[%clk 0:01:30.2]} 21... Rxd1 {[%clk 0:00:22.8]} 22.
Rxd1 {[%clk 0:01:29.8]} 22... Rc8 {[%clk 0:00:23.7]} 23. Rd4 {[%clk 0:01:27.5]}
23... Be8 {[%clk 0:00:15.8]} 24. Ke3 {[%clk 0:01:24.4]} 24... g5 {[%clk
0:00:15.2]} 25. Bg3 {[%clk 0:01:24.1]} 25... c5 {[%clk 0:00:12.5]} 26. Rd6
{[%clk 0:01:21.3]} 26... Ba4 {[%clk 0:00:10.7]} 27. Kd2 {[%clk 0:01:21]} 27...
Ke7 {[%clk 0:00:08.8]} 28. c4 {[%clk 0:01:18.6]} 28... Rd8 {[%clk 0:00:06.2]}
29. Rxd8 {[%clk 0:01:18]} 29... Kxd8 {[%clk 0:00:07.1]} 30. Bd6 {[%clk
0:01:14.9]} 30... Kd7 {[%clk 0:00:06.3]} 31. Bf8 {[%clk 0:01:14.8]} 31... Ke6
{[%clk 0:00:02.7]} 32. Bxh6 {[%clk 0:01:10.4]} 32... Bc6 {[%clk 0:00:02.2]} 33.
Bf8 {[%clk 0:01:07.6]} 33... Kf7 {[%clk 0:00:01.5]} 34. Bd6 {[%clk 0:01:06.9]}
1-0

[Event "Late-Titled-Tuesday-Blitz-May-07-2024"]
[Site "Chess.com"]
[Date "2024.05.07"]
[Round "3"]
[White "emeli_chess"]
[Black "dlp300"]
[Result "0-1"]
[WhiteElo "2442"]
[BlackElo "2648"]
[TimeControl "180+1"]
[EndTime "14:27:28 PDT"]
[Termination "dlp300 won by resignation"]

1. d4 {[%clk 0:02:49.9]} 1... d5 {[%clk 0:02:59.4]} 2. c4 {[%clk 0:02:49.5]}
2... c6 {[%clk 0:02:58.8]} 3. Nc3 {[%clk 0:02:49.5]} 3... Nf6 {[%clk 0:02:57.7]}
4. e3 {[%clk 0:02:49.8]} 4... e6 {[%clk 0:02:48.1]} 5. Nf3 {[%clk 0:02:49.4]}
5... Bd6 {[%clk 0:02:47.7]} 6. Bd3 {[%clk 0:02:49.5]} 6... O-O {[%clk
0:02:47.3]} 7. O-O {[%clk 0:02:49.3]} 7... Nbd7 {[%clk 0:02:47.4]} 8. e4 {[%clk
0:02:49.1]} 8... dxc4 {[%clk 0:02:41.3]} 9. Bxc4 {[%clk 0:02:48.9]} 9... e5
{[%clk 0:02:40.7]} 10. Bg5 {[%clk 0:02:47.7]} 10... h6 {[%clk 0:02:37.4]} 11.
Bxf6 {[%clk 0:02:31.5]} 11... Qxf6 {[%clk 0:02:36.7]} 12. d5 {[%clk 0:02:18.1]}
12... c5 {[%clk 0:02:14.2]} 13. Nb5 {[%clk 0:02:05]} 13... Bb8 {[%clk
0:02:10.6]} 14. d6 {[%clk 0:02:02]} 14... Nb6 {[%clk 0:02:08.1]} 15. b3 {[%clk
0:01:49.1]} 15... Rd8 {[%clk 0:02:06.9]} 16. Qd3 {[%clk 0:01:32.2]} 16... Bxd6
{[%clk 0:02:03.9]} 17. Rad1 {[%clk 0:01:24.5]} 17... Be7 {[%clk 0:02:03.7]} 18.
Qc3 {[%clk 0:01:23.8]} 18... Rxd1 {[%clk 0:01:52.3]} 19. Rxd1 {[%clk 0:01:22.8]}
19... Bg4 {[%clk 0:01:53]} 20. Be2 {[%clk 0:01:07]} 20... a6 {[%clk 0:01:42.7]}
21. Nc7 {[%clk 0:01:06.8]} 21... Rc8 {[%clk 0:01:42.6]} 22. Nd5 {[%clk
0:01:05.2]} 22... Nxd5 {[%clk 0:01:42.6]} 23. Rxd5 {[%clk 0:00:58.2]} 23... Be6
{[%clk 0:01:37.5]} 24. Rd1 {[%clk 0:00:42.6]} 24... Bg4 {[%clk 0:01:34]} 25. h3
{[%clk 0:00:32]} 25... Bxf3 {[%clk 0:01:33.6]} 26. Bxf3 {[%clk 0:00:31.1]} 26...
b5 {[%clk 0:01:33.8]} 27. Bg4 {[%clk 0:00:27.1]} 27... Rc7 {[%clk 0:01:24.9]}
28. Rd5 {[%clk 0:00:25.8]} 28... c4 {[%clk 0:01:21.3]} 29. bxc4 {[%clk
0:00:23.3]} 29... Rxc4 {[%clk 0:01:19]} 30. Qd3 {[%clk 0:00:18.2]} 30... Bc5
{[%clk 0:01:16.7]} 31. Bf5 {[%clk 0:00:15.3]} 31... g6 {[%clk 0:01:15.1]} 32.
Rd8+ {[%clk 0:00:14.8]} 32... Kg7 {[%clk 0:01:13.9]} 33. Bg4 {[%clk 0:00:09.8]}
33... Qxf2+ {[%clk 0:01:12]} 34. Kh2 {[%clk 0:00:10.1]} 34... Qf4+ {[%clk
0:01:09.1]} 0-1

[Event "Late-Titled-Tuesday-Blitz-May-07-2024"]
[Site "Chess.com"]
[Date "2024.05.07"]
[Round "3"]
[White "semchik90"]
[Black "Zq1"]
[Result "1-0"]
[WhiteElo "2432"]
[BlackElo "2607"]
[TimeControl "180+1"]
[EndTime "14:27:29 PDT"]
[Termination "semchik90 won by resignation"]

1. Nf3 {[%clk 0:03:00.2]} 1... Nf6 {[%clk 0:02:59.2]} 2. c4 {[%clk 0:03:00.5]}
2... c5 {[%clk 0:02:58.5]} 3. e3 {[%clk 0:03:00.6]} 3... g6 {[%clk 0:02:55.6]}
4. d4 {[%clk 0:03:00.9]} 4... cxd4 {[%clk 0:02:54]} 5. exd4 {[%clk 0:03:01.8]}
5... d5 {[%clk 0:02:53.1]} 6. Nc3 {[%clk 0:03:01.9]} 6... Bg7 {[%clk 0:02:53]}
7. c5 {[%clk 0:03:02.2]} 7... O-O {[%clk 0:02:48.3]} 8. Be2 {[%clk 0:03:02.5]}
8... b6 {[%clk 0:02:48]} 9. cxb6 {[%clk 0:03:02.2]} 9... axb6 {[%clk 0:02:44.8]}
10. O-O {[%clk 0:03:02]} 10... Ba6 {[%clk 0:02:43.1]} 11. Bxa6 {[%clk
0:03:00.5]} 11... Rxa6 {[%clk 0:02:40.7]} 12. Qb3 {[%clk 0:02:57.8]} 12... e6
{[%clk 0:02:17.2]} 13. Ne5 {[%clk 0:02:46.9]} 13... Nfd7 {[%clk 0:02:14.9]} 14.
f4 {[%clk 0:02:40.7]} 14... Nxe5 {[%clk 0:02:14.3]} 15. fxe5 {[%clk 0:02:38]}
15... Nc6 {[%clk 0:02:14]} 16. Be3 {[%clk 0:02:37.4]} 16... Na5 {[%clk 0:02:13]}
17. Qb5 {[%clk 0:02:35.1]} 17... Qa8 {[%clk 0:02:08.3]} 18. b3 {[%clk 0:02:31]}
18... Nc6 {[%clk 0:01:50.6]} 19. Na4 {[%clk 0:02:25]} 19... Ra5 {[%clk
0:01:32.6]} 20. Qe2 {[%clk 0:01:57.7]} 20... Qa6 {[%clk 0:01:29.6]} 21. Qxa6
{[%clk 0:01:52.1]} 21... Rxa6 {[%clk 0:01:29.3]} 22. Rfc1 {[%clk 0:01:50.6]}
22... Ne7 {[%clk 0:01:20.7]} 23. Rc7 {[%clk 0:01:48.3]} 23... Nf5 {[%clk
0:01:20.1]} 24. Bf2 {[%clk 0:01:46.2]} 24... h5 {[%clk 0:01:19.1]} 25. Rac1
{[%clk 0:01:41]} 25... b5 {[%clk 0:01:16.6]} 26. Nc3 {[%clk 0:01:36.3]} 26...
Bh6 {[%clk 0:01:14.5]} 27. Rc2 {[%clk 0:01:32.5]} 27... Rb8 {[%clk 0:01:00.8]}
28. Rc5 {[%clk 0:01:18.6]} 28... Ne3 {[%clk 0:00:40.2]} 29. Re2 {[%clk
0:01:08.3]} 29... Ng4 {[%clk 0:00:39.7]} 30. Rxb5 {[%clk 0:01:05.4]} 30... Rc8
{[%clk 0:00:23.2]} 31. Rc5 {[%clk 0:01:05.2]} 31... Rxc5 {[%clk 0:00:19.4]} 32.
dxc5 {[%clk 0:01:06.1]} 32... Nxf2 {[%clk 0:00:16.1]} 33. Kxf2 {[%clk
0:01:06.1]} 33... Bf8 {[%clk 0:00:04.8]} 34. b4 {[%clk 0:01:05.8]} 34... Ra3
{[%clk 0:00:04.3]} 35. Rc2 {[%clk 0:01:03.5]} 35... d4 {[%clk 0:00:04.2]} 36.
Nb5 {[%clk 0:01:02]} 36... Ra8 {[%clk 0:00:03.6]} 37. Nxd4 {[%clk 0:01:01.5]}
1-0

[Event "Late-Titled-Tuesday-Blitz-May-07-2024"]
[Site "Chess.com"]
[Date "2024.05.07"]
[Round "3"]
[White "Oleksandr_Bortnyk"]
[Black "KNVB"]
[Result "1-0"]
[WhiteElo "3065"]
[BlackElo "2801"]
[TimeControl "180+1"]
[EndTime "14:27:33 PDT"]
[Termination "Oleksandr_Bortnyk won on time"]

1. e4 {[%clk 0:03:00.9]} 1... a5 {[%clk 0:03:00.9]} 2. d4 {[%clk 0:02:56.2]}
2... Ra6 {[%clk 0:03:01.8]} 3. Bxa6 {[%clk 0:02:55.3]} 3... Nxa6 {[%clk
0:03:01.4]} 4. Nf3 {[%clk 0:02:45.4]} 4... e6 {[%clk 0:02:53]} 5. c4 {[%clk
0:02:43.6]} 5... b6 {[%clk 0:02:52.2]} 6. O-O {[%clk 0:02:43.2]} 6... Bb7 {[%clk
0:02:50.7]} 7. Nc3 {[%clk 0:02:42.6]} 7... Bb4 {[%clk 0:02:45.4]} 8. Re1 {[%clk
0:02:41.6]} 8... Bxc3 {[%clk 0:01:52.4]} 9. bxc3 {[%clk 0:02:42.5]} 9... Ne7
{[%clk 0:01:52.7]} 10. Ng5 {[%clk 0:02:37.2]} 10... f6 {[%clk 0:01:41.9]} 11.
Nh3 {[%clk 0:02:25.6]} 11... O-O {[%clk 0:01:40.6]} 12. Qh5 {[%clk 0:02:22.3]}
12... Nb8 {[%clk 0:01:22.6]} 13. Rb1 {[%clk 0:02:21.5]} 13... f5 {[%clk
0:00:51.8]} 14. d5 {[%clk 0:02:17.7]} 14... e5 {[%clk 0:00:24.5]} 15. Bg5 {[%clk
0:02:09.4]} 15... d6 {[%clk 0:00:18.8]} 16. exf5 {[%clk 0:02:00.1]} 16... Nd7
{[%clk 0:00:17.1]} 17. Bxe7 {[%clk 0:01:42.9]} 17... Qxe7 {[%clk 0:00:18]} 18.
Ng5 {[%clk 0:01:43]} 18... Nf6 {[%clk 0:00:11.5]} 19. Qh4 {[%clk 0:01:43.3]}
19... h6 {[%clk 0:00:02.2]} 20. Ne6 {[%clk 0:01:41.9]} 20... Rf7 {[%clk
0:00:02.9]} 21. f4 {[%clk 0:01:23.9]} 21... e4 {[%clk 0:00:02.8]} 22. g4 {[%clk
0:01:21.2]} 22... Ba6 {[%clk 0:00:02.8]} 23. g5 {[%clk 0:01:19.8]} 23... Ne8
{[%clk 0:00:02]} 24. Rxe4 {[%clk 0:01:16.4]} 24... Rxf5 {[%clk 0:00:02.4]} 25.
Rbe1 {[%clk 0:00:58.6]} 25... Qd7 {[%clk 0:00:02.8]} 26. Nd4 {[%clk 0:00:48]}
26... Rf8 {[%clk 0:00:02.8]} 27. Re7 {[%clk 0:00:48.5]} 27... Qd8 {[%clk
0:00:01.5]} 28. gxh6 {[%clk 0:00:49.1]} 28... Bxc4 {[%clk 0:00:01.3]} 29. hxg7
{[%clk 0:00:43.8]} 29... Nxg7 {[%clk 0:00:01.4]} 30. Rxg7+ {[%clk 0:00:44.7]}
30... Kxg7 {[%clk 0:00:01.7]} 31. Ne6+ {[%clk 0:00:45.6]} 31... Kf7 {[%clk
0:00:01.4]} 32. Nxd8+ {[%clk 0:00:46.5]} 32... Rxd8 {[%clk 0:00:01.5]} 33. Qxd8
{[%clk 0:00:46.3]} 1-0

[Event "Late-Titled-Tuesday-Blitz-May-07-2024"]
[Site "Chess.com"]
[Date "2024.05.07"]
[Round "3"]
[White "stasOR4ik"]
[Black "ellatambien"]
[Result "0-1"]
[WhiteElo "2471"]
[BlackElo "2682"]
[TimeControl "180+1"]
[EndTime "14:27:33 PDT"]
[Termination "ellatambien won by resignation"]

1. e4 {[%clk 0:03:00.9]} 1... e5 {[%clk 0:02:59.9]} 2. Nf3 {[%clk 0:03:00.7]}
2... Nc6 {[%clk 0:03:00.5]} 3. Bb5 {[%clk 0:03:00.9]} 3... a6 {[%clk 0:02:58.6]}
4. Ba4 {[%clk 0:03:01]} 4... Nf6 {[%clk 0:02:58.7]} 5. O-O {[%clk 0:03:01.3]}
5... Bc5 {[%clk 0:02:58.8]} 6. c3 {[%clk 0:02:54.1]} 6... b5 {[%clk 0:02:56.4]}
7. Bc2 {[%clk 0:02:53.7]} 7... d6 {[%clk 0:02:56.5]} 8. d4 {[%clk 0:02:53.4]}
8... Ba7 {[%clk 0:02:56.5]} 9. h3 {[%clk 0:02:52.9]} 9... Bb7 {[%clk 0:02:55.9]}
10. Be3 {[%clk 0:02:46.1]} 10... O-O {[%clk 0:02:54.5]} 11. Nbd2 {[%clk
0:02:45.4]} 11... Re8 {[%clk 0:02:49.7]} 12. Re1 {[%clk 0:02:44.8]} 12... exd4
{[%clk 0:02:42.9]} 13. cxd4 {[%clk 0:02:44.1]} 13... Nb4 {[%clk 0:02:42.9]} 14.
Bb1 {[%clk 0:02:42.5]} 14... Nxe4 {[%clk 0:02:41.3]} 15. a3 {[%clk 0:02:40.4]}
15... Nxd2 {[%clk 0:02:39.9]} 16. Qxd2 {[%clk 0:02:30.6]} 16... Bxf3 {[%clk
0:02:36.7]} 17. axb4 {[%clk 0:02:25.1]} 17... Bb7 {[%clk 0:02:36.2]} 18. Qd3
{[%clk 0:02:05.9]} 18... Be4 {[%clk 0:02:34.7]} 19. Qc3 {[%clk 0:02:03.8]} 19...
Bb6 {[%clk 0:02:30.7]} 20. Bxe4 {[%clk 0:01:33.2]} 20... Rxe4 {[%clk 0:02:29.8]}
21. Qc6 {[%clk 0:01:33.4]} 21... Qe8 {[%clk 0:02:28]} 22. Qb7 {[%clk 0:01:29.2]}
22... h6 {[%clk 0:02:12.7]} 23. Rxa6 {[%clk 0:01:22.4]} 23... Rxa6 {[%clk
0:02:10.5]} 24. Qxa6 {[%clk 0:01:22.4]} 24... Bxd4 {[%clk 0:02:10.5]} 25. Qa3
{[%clk 0:01:15.8]} 25... Bxe3 {[%clk 0:02:01.9]} 26. Rxe3 {[%clk 0:01:15.6]}
26... Rxe3 {[%clk 0:02:02.2]} 27. fxe3 {[%clk 0:01:15.9]} 27... Qe4 {[%clk
0:01:58.1]} 28. Kf2 {[%clk 0:01:11.3]} 28... g5 {[%clk 0:01:48.9]} 29. Qc3
{[%clk 0:01:05.3]} 29... c6 {[%clk 0:01:44.5]} 30. Qf6 {[%clk 0:01:00.6]} 30...
Qe6 {[%clk 0:01:40.3]} 31. Qd8+ {[%clk 0:00:56.9]} 31... Kg7 {[%clk 0:01:39.6]}
32. Qa8 {[%clk 0:00:55.1]} 32... Qf6+ {[%clk 0:01:36.2]} 33. Kg1 {[%clk
0:00:55]} 33... Qxb2 {[%clk 0:01:29.6]} 34. Qxc6 {[%clk 0:00:54.9]} 34... Qxb4
{[%clk 0:01:29.9]} 35. Qd5 {[%clk 0:00:51.2]} 35... Qc5 {[%clk 0:01:28.3]} 36.
Qd3 {[%clk 0:00:51.2]} 36... b4 {[%clk 0:01:27.4]} 37. h4 {[%clk 0:00:49.8]}
37... gxh4 {[%clk 0:01:26.1]} 38. Qe4 {[%clk 0:00:49.8]} 38... b3 {[%clk
0:01:20.7]} 39. Qg4+ {[%clk 0:00:49.4]} 39... Kf8 {[%clk 0:01:20.3]} 40. Qxh4
{[%clk 0:00:49.1]} 40... Qxe3+ {[%clk 0:01:06.6]} 41. Kh1 {[%clk 0:00:48.6]}
41... b2 {[%clk 0:00:55.7]} 42. Qd8+ {[%clk 0:00:36.4]} 42... Kg7 {[%clk
0:00:54.9]} 43. Kh2 {[%clk 0:00:33.2]} 43... b1=Q {[%clk 0:00:53.7]} 44. Qg5+
{[%clk 0:00:25.7]} 0-1

[Event "Late-Titled-Tuesday-Blitz-May-07-2024"]
[Site "Chess.com"]
[Date "2024.05.07"]
[Round "3"]
[White "SHIVACalypso"]
[Black "FabianoCaruana"]
[Result "0-1"]
[WhiteElo "2534"]
[BlackElo "3076"]
[TimeControl "180+1"]
[EndTime "14:27:34 PDT"]
[Termination "FabianoCaruana won on time"]

1. d4 {[%clk 0:02:56.8]} 1... Nf6 {[%clk 0:02:59.5]} 2. c4 {[%clk 0:02:56.6]}
2... d6 {[%clk 0:02:59.7]} 3. Nf3 {[%clk 0:02:55.7]} 3... g6 {[%clk 0:02:59.9]}
4. g3 {[%clk 0:02:56.1]} 4... Bg7 {[%clk 0:02:59.2]} 5. Bg2 {[%clk 0:02:56.6]}
5... O-O {[%clk 0:02:59.9]} 6. O-O {[%clk 0:02:56.9]} 6... c6 {[%clk 0:02:59.7]}
7. Nc3 {[%clk 0:02:56.8]} 7... Bf5 {[%clk 0:03:00.2]} 8. Nh4 {[%clk 0:02:55.3]}
8... Be6 {[%clk 0:03:00.1]} 9. b3 {[%clk 0:02:52.8]} 9... a5 {[%clk 0:02:57.6]}
10. Bb2 {[%clk 0:02:52.3]} 10... d5 {[%clk 0:02:52.9]} 11. Qd3 {[%clk 0:02:47]}
11... Na6 {[%clk 0:02:50.2]} 12. a3 {[%clk 0:02:44.6]} 12... Nc7 {[%clk
0:02:43.8]} 13. e4 {[%clk 0:02:39.1]} 13... dxe4 {[%clk 0:02:41.5]} 14. Nxe4
{[%clk 0:02:39.1]} 14... Nxe4 {[%clk 0:02:41.3]} 15. Bxe4 {[%clk 0:02:38.6]}
15... a4 {[%clk 0:02:41.1]} 16. b4 {[%clk 0:02:32.9]} 16... b5 {[%clk
0:02:41.3]} 17. cxb5 {[%clk 0:02:26.7]} 17... cxb5 {[%clk 0:02:40.7]} 18. Bxa8
{[%clk 0:02:16.8]} 18... Qxa8 {[%clk 0:02:41.6]} 19. Rac1 {[%clk 0:02:17.2]}
19... Rc8 {[%clk 0:02:37.9]} 20. Rfe1 {[%clk 0:02:01.8]} 20... Qb7 {[%clk
0:02:28.1]} 21. Ng2 {[%clk 0:01:53.6]} 21... Bc4 {[%clk 0:02:23.8]} 22. Rxc4
{[%clk 0:01:43.5]} 22... bxc4 {[%clk 0:02:24.7]} 23. Qxc4 {[%clk 0:01:43.7]}
23... Nb5 {[%clk 0:02:15.9]} 24. Qd3 {[%clk 0:01:42.3]} 24... e6 {[%clk
0:02:14.7]} 25. Ne3 {[%clk 0:01:38]} 25... Rd8 {[%clk 0:02:13.4]} 26. Qc2 {[%clk
0:01:29.3]} 26... Bxd4 {[%clk 0:02:11.5]} 27. Rd1 {[%clk 0:01:22.4]} 27... Rc8
{[%clk 0:02:11.3]} 28. Nc4 {[%clk 0:00:46.2]} 28... e5 {[%clk 0:02:04.2]} 29.
Bxd4 {[%clk 0:00:35.2]} 29... Nxd4 {[%clk 0:02:03.2]} 30. Qd3 {[%clk 0:00:35.2]}
30... Nf3+ {[%clk 0:02:01]} 31. Kf1 {[%clk 0:00:34.7]} 31... Nxh2+ {[%clk
0:02:01]} 32. Kg1 {[%clk 0:00:35.1]} 32... Nf3+ {[%clk 0:02:01.2]} 33. Kf1
{[%clk 0:00:35.7]} 33... Nd4 {[%clk 0:01:56.2]} 34. Kg1 {[%clk 0:00:32]} 34...
Qf3 {[%clk 0:01:43]} 35. Qxf3 {[%clk 0:00:16.2]} 35... Nxf3+ {[%clk 0:01:43.9]}
36. Kg2 {[%clk 0:00:15.6]} 36... Rxc4 {[%clk 0:01:27.9]} 37. Kxf3 {[%clk
0:00:15.8]} 37... Rc3+ {[%clk 0:01:28.4]} 38. Ke4 {[%clk 0:00:16.3]} 38... Rxa3
{[%clk 0:01:28.8]} 39. Kxe5 {[%clk 0:00:16.2]} 39... Rb3 {[%clk 0:01:28.6]} 40.
f4 {[%clk 0:00:10.8]} 40... Rxb4 {[%clk 0:01:26.3]} 41. Kf6 {[%clk 0:00:10]}
41... Rb6+ {[%clk 0:01:26.3]} 42. Kg5 {[%clk 0:00:10.3]} 42... Kg7 {[%clk
0:01:26.4]} 43. f5 {[%clk 0:00:07.8]} 43... Ra6 {[%clk 0:01:25.6]} 44. Ra1
{[%clk 0:00:03.7]} 44... f6+ {[%clk 0:01:24]} 45. Kf4 {[%clk 0:00:02.6]} 45...
a3 {[%clk 0:01:24.9]} 46. fxg6 {[%clk 0:00:02.2]} 46... hxg6 {[%clk 0:01:25.8]}
0-1